Workbook

Sheet Лист1
A1: Школа | B1: МАОУ СОШ №17 г.Белебея | E1: Отд./корп | I1: День | J1: 2024-11-25
A3: Прием пищи | B3: Раздел | C3: № рец. | D3: Блюдо | E3: Выход, г | F3: Цена | G3: Калорийность | H3: Белки | I3: Жиры | J3: Углеводы
A4: Завтрак | B4: гор.блюдо | C4: 82 | D4: Котлета рубленая из птицы с овощн.подливом | E4: 90 | F4: 56.04 | G4: 178 | H4: 7.5 | I4: 9.3 | J4: 8.72
B5: гор.блюдо | C5: 302.01 | D5: Каша гречневая вязкая с маслом | E5: 160 | F5: 17.75 | G5: 181.6 | H5: 4.81 | I5: 8.49 | J5: 21.54
B6: гор.напиток | C6: 282.11 | D6: Чай витаминизированный | E6: 200 | F6: 8.28 | G6: 39 | H6: 0 | I6: 0 | J6: 9.7
B7: хлеб | C7: 420.06 | D7: Хлеб пшен.обогащ.витам.для д/п | E7: 50 | F7: 4.50 | G7: 130 | H7: 4 | I7: 0.5 | J7: 27.5
B8: Итого: | E8: =SUM(E4:E7) -> 500 | F8: =SUM(F4:F7) -> 86.57 | G8: =SUM(G4:G7) -> 528.6 | H8: 16.31 | I8: 18.29 | J8: 67.46
A9: Завтрак 2 | B9: фрукты
A12: Обед | B12: закуска
B13: 1 блюдо | C13: 53.42 | D13: Щи из свежей капусты со сметаной | E13: 210 | F13: 10.00 | G13: 80.73 | H13: 1.68 | I13: 4.86 | J13: 7.36
B14: 2 блюдо | C14: 233.23 | D14: Мясо птицы,припущенное в томатном соусе | E14: 90 | F14: 51.48 | G14: 251.97 | H14: 19.83 | I14: 17.99 | J14: 2.93
B15: гарнир | C15: 211.05 | D15: Макаронные изделия отварные с маслом | E15: 155 | F15: 9.60 | G15: 210.5 | H15: 5.82 | I15: 4.31 | J15: 37.08
B16: напиток | C16: 283 | D16: Чай с сахаром | E16: 200 | F16: 1.74 | G16: 39.9 | H16: 0 | I16: 0 | J16: 9.98
B17: хлеб бел. | C17: 420.02 | D17: Хлеб пшен.обогащ.витам.для д/п | E17: 40 | F17: 2.60 | G17: 104 | H17: 3.2 | I17: 0.4 | J17: 22
B18: хлеб черн. | C18: 421.11 | D18: Хлеб ржано-пшеничный для д/ п | E18: 40 | F18: 2.60 | G18: 88 | H18: 3.2 | I18: 0.4 | J18: 18.4
B19: Итого: | E19: =SUM(E13:E18) -> 735 | F19: =SUM(F13:F18) -> 78.02 | G19: =SUM(G13:G18) -> 775.1 | H19: =SUM(H13:H18) -> 33.73 | I19: 27.96 | J19: 97.75
B21: Итого за день: | E21: =E8+E19 -> 1235 | F21: 164.59 | G21: 1303.7 | H21: 50.04 | I21: 46.25 | J21: 165.21

Sheet Лист2
A1: Школа | B1: МАОУ СОШ №17 г.Белебея | E1: Отд./корп | I1: День | J1: 2024-11-26
A3: Прием пищи | B3: Раздел | C3: № рец. | D3: Блюдо | E3: Выход, г | F3: Цена | G3: Калорийность | H3: Белки | I3: Жиры | J3: Углеводы
A4: Завтрак | B4: гор.блюдо | C4: 528 | D4: Тефтели куриные в томатном соусе | E4: 100 | F4: 54.70 | G4: 145 | H4: 8.2 | I4: 8.52 | J4: 3.54
B5: гор.блюдо | C5: 138.06 | D5: Картофельное пюре | E5: 180 | F5: 23.26 | G5: 177.19 | H5: 3.95 | I5: 6.09 | J5: 26.5
B6: гор.напиток | C6: 285 | D6: Чай с лимоном и сахаром | E6: 200 | F6: 4.11 | G6: 42.28 | H6: 0.06 | I6: 0.01 | J6: 10.19
B7: хлеб | C7: 420.06 | D7: Хлеб пшен.обогащ.витам.для д/п | E7: 50 | F7: 4.50 | G7: 130 | H7: 4 | I7: 0.5 | J7: 27.5
B8: Итого: | E8: =SUM(E4:E7) -> 530 | F8: =SUM(F4:F7) -> 86.57 | G8: 494.47 | H8: 16.21 | I8: 15.12 | J8: 67.73
A9: Завтрак 2 | B9: фрукты
A12: Обед | B12: закуска | C12: 25.09 | D12: Салат из свёклы с яблоками | E12: 60 | F12: 8.95 | G12: 54.96 | H12: 0.68 | I12: 3.11 | J12: 5.95
B13: 1 блюдо | C13: 129.08 | D13: Суп картофельный с горохом и гренками | E13: 215 | F13: 10.13 | G13: 175.69 | H13: 6.62 | I13: 3.88 | J13: 28.57
B14: 2 блюдо | C14: 118.08 | D14: Рагу овощное с отварным мясом | E14: 160 | F14: 33.59 | G14: 237.8 | H14: 12.96 | I14: 15.24 | J14: 12.02
B15: гарнир | E15: 0 | F15: 0.00 | G15: 0 | H15: 0 | I15: 0 | J15: 0
B16: сладкое | C16: 305.11 | D16: Витаминизированный кисель | E16: 200 | F16: 19.50 | G16: 95 | H16: 0 | I16: 0 | J16: 23.5
B17: хлеб бел. | C17: 420.09 | D17: Хлеб пшен.обогащ.витам.для д/п | E17: 25 | F17: 2.25 | G17: 65 | H17: 2 | I17: 0.25 | J17: 13.75
B18: хлеб черн. | C18: 421.11 | D18: Хлеб ржано-пшеничный для д/п | E18: 40 | F18: 3.60 | G18: 88 | H18: 3.2 | I18: 0.4 | J18: 18.4
B19: Итого: | E19: =SUM(E12:E18) -> 700 | F19: =SUM(F12:F18) -> 78.02 | G19: 716.45 | H19: 25.46 | I19: 22.88 | J19: 102.19
B20: Итого за день | E20: =E8+E19 -> 1230 | F20: =F8+F19 -> 164.59 | G20: 1210.92 | H20: =H8+H19 -> 41.67 | I20: =I8+I19 -> 38 | J20: =J8+J19 -> 169.92

Sheet Лист3
A1: Школа | B1: МАОУ СОШ №17 г.Белебея | E1: Отд./корп | I1: День | J1: 2024-11-27
A3: Прием пищи | B3: Раздел | C3: № рец. | D3: Блюдо | E3: Выход, г | F3: Цена | G3: Калорийность | H3: Белки | I3: Жиры | J3: Углеводы
A4: Завтрак | B4: гор.блюдо | C4: 435 | D4: Суфле творожное запечённое со сгущ.мол. | E4: 170 | F4: 68.63 | G4: 361 | H4: 22.84 | I4: 16.04 | J4: 31.05
B5: гор.напиток | C5: 283 | D5: Чай с сахаром | E5: 200 | F5: 1.74 | G5: 39.9 | H5: 0 | I5: 0 | J5: 9.98
B6: хлеб | C6: 1.1 | D6: Хлеб пшен.обогащ.витам. для д/п | E6: 30 | F6: 2.7 | G6: 78 | H6: 2.4 | I6: 0.3 | J6: 16.5
B7: фрукты | C7: 38 | D7: Яблоко | E7: 100 | F7: 13.5 | G7: 47 | H7: 0.4 | I7: 0.4 | J7: 9.8
E8: 0 | F8: 0 | G8: 0 | H8: 0 | I8: 0 | J8: 0
A9: Завтрак 2 | B9: Итого: | E9: =SUM(E4:E8) -> 500 | F9: =SUM(F4:F8) -> 86.57 | G9: =SUM(G4:G8) -> 525.9 | H9: 25.64 | I9: 16.74 | J9: 67.33
B10: фрукты
A12: Обед
B13: закуска
B14: 1 блюдо | C14: 56.13 | D14: Борщ с капустой и картоф.со смет. | E14: 260 | F14: 10.36 | G14: 100.62 | H14: 2.03 | I14: 5.67 | J14: 10.16
B15: 2 блюдо | C15: 445.35 | D15: Котлеты мясные с томат.соусом | E15: 90 | F15: 46.98 | G15: 178.98 | H15: 9.87 | I15: 11.79 | J15: 8.34
B16: гарнир | C16: 175 | D16: Каша гречневая вязкая с маслом | E16: 185 | F16: 10.84 | G16: 171.65 | H16: 5.71 | I16: 5.11 | J16: 25.76
B17: напиток | C17: 283 | D17: Чай с сахаром | E17: 200 | F17: 1.74 | G17: 39.9 | H17: 0 | I17: 0 | J17: 9.98
B18: хлеб бел. | C18: 420.06 | D18: Хлеб пшен.обогащ.витам.для д/п | E18: 50 | F18: 4.50 | G18: 130 | H18: 4 | I18: 0.5 | J18: 27.5
B19: хлеб черн. | C19: 421.11 | D19: Хлеб ржано-пшеичный для д/п | E19: 40 | F19: 3.60 | G19: 88 | H19: 3.2 | I19: 0.4 | J19: 18.4
B20: Итого: | E20: =SUM(E14:E19) -> 825 | F20: =SUM(F14:F19) -> 78.02 | G20: 709.15 | H20: 24.81 | I20: 23.47 | J20: 100.14
B21: Итого за день: | E21: =E9+E20 -> 1325 | F21: 164.59 | G21: 1235.05 | H21: 50.45 | I21: 40.21 | J21: 167.47

Sheet Лист4
A1: Школа | B1: МАОУ СОШ №17 г.Белебея | E1: Отд./корп | I1: День | J1: 2024-11-28
A3: Прием пищи | B3: Раздел | C3: № рец. | D3: Блюдо | E3: Выход, г | F3: Цена | G3: Калорийность | H3: Белки | I3: Жиры | J3: Углеводы
A4: Завтрак | B4: гор.блюдо | C4: 527пф | D4: Тефтели из говядины с томатным соусом | E4: 100 | F4: 67.73 | G4: 180.64 | H4: 8.76 | I4: 12.21 | J4: 8.85
B5: гор.блюдо | C5: 211.05 | D5: Макаронные изделия отварные с маслом | E5: 155 | F5: 12.6 | G5: 210.5 | H5: 5.82 | I5: 4.31 | J5: 37.08
B6: гор.напиток | C6: 283 | D6: Чай с сахаром | E6: 200 | F6: 1.74 | G6: 39.9 | H6: 0 | I6: 0 | J6: 9.98
B7: хлеб | C7: 420.06 | D7: Хлеб пшен.обогащ.витам.для д/п | E7: 50 | F7: 4.5 | G7: 130 | H7: 4 | I7: 0.5 | J7: 27.5
E8: =SUM(E4:E7) -> 505 | F8: 86.57 | G8: 561.04 | H8: 18.58 | I8: 17.02 | J8: 83.41
A9: Завтрак 2 | B9: фрукты
A12: Обед | B12: закуска
B13: 1 блюдо | C13: 450.13 | D13: Суп картофельный с клёцками | E13: 250 | F13: 8.86 | G13: 110.91 | H13: 1.72 | I13: 6.27 | J13: 11.83
B14: 2 блюдо | C14: 53пф | D14: Котлета рыбная с томатным соусом | E14: 90 | F14: 40.00 | G14: 120 | H14: 13 | I14: 3.1 | J14: 9.9
B15: гарнир | C15: 611.02 | D15: Рис припущенный | E15: 180 | F15: 19.32 | G15: 275.89 | H15: 4.55 | I15: 7.88 | J15: 46.75
B16: напиток | C16: 283 | D16: Чай с сахаром | E16: 200 | F16: 1.74 | G16: 39.9 | H16: 0 | I16: 0 | J16: 9.98
B17: хлеб бел. | C17: 420.06 | D17: Хлеб пшен.обогащ.витам.для д/п | E17: 50 | F17: 4.50 | G17: 130 | H17: 4 | I17: 0.5 | J17: 27.5
B18: хлеб черн. | C18: 421.11 | D18: Хлеб ржано-пшеичный для д/п | E18: 40 | F18: 3.60 | G18: 88 | H18: 3.2 | I18: 0.4 | J18: 18.4
E19: =SUM(E13:E18) -> 810 | F19: =SUM(F13:F18) -> 78.02 | G19: 764.7 | H19: 26.47 | I19: 18.15 | J19: 124.36
B20: Итого за день: | E20: =E8+E19 -> 1315 | F20: 164.59 | G20: 1325.74 | H20: 45.05 | I20: 35.17 | J20: 207.77

Sheet Лист5
A1: Школа | B1: МАОУ СОШ №17 г.Белебея | E1: Отд./корп | I1: День | J1: 2024-11-29
A3: Прием пищи | B3: Раздел | C3: № рец. | D3: Блюдо | E3: Выход, г | F3: Цена | G3: Калорийность | H3: Белки | I3: Жиры | J3: Углеводы
A4: Завтрак | B4: гор.блюдо | C4: 181.39 | D4: Каша рисовая молочная вязкая с маслом | E4: 160 | F4: 27.49 | G4: 237.47 | H4: 4.6 | I4: 9.96 | J4: 32.25
B5: гор.блюдо | C5: ТБ0029 | D5: Сырники из творога с повидлом | E5: 85 | F5: 37.73 | G5: 187 | H5: 11.4 | I5: 10.5 | J5: 11.7
B6: гор.напиток | C6: 282.11 | D6: Чай витаминизированный | E6: 200 | F6: 8.28 | G6: 39 | H6: 0 | I6: 0 | J6: 9.7
B7: хлеб | C7: 420.05 | D7: Хлеб пшен.обогащ.витам.для д/п с сыром | E7: 55 | F7: 13.07 | G7: 152 | H7: 6.23 | I7: 3.11 | J7: 24.75
E8: =SUM(E4:E7) -> 500 | F8: 86.57 | G8: 615.47 | H8: 22.23 | I8: 23.57 | J8: 78.4
A9: Завтрак 2 | B9: фрукты
A12: Обед | B12: закуска
B13: 1 блюдо | C13: 54.47 | D13: Рассольник ленинградский со сметаной | E13: 210 | F13: 10.44 | G13: 109.77 | H13: 2.09 | I13: 5.01 | J13: 13.9
B14: 2 блюдо | C14: 502.5 | D14: Биточки из мяса птицы с томатным соусом | E14: 100 | F14: 37.39 | G14: 162.58 | H14: 10.05 | I14: 9.58 | J14: 9.1
B15: гарнир | C15: 138.06 | D15: Картофельное пюре | E15: 180 | F15: 20.80 | G15: 177.19 | H15: 3.95 | I15: 6.09 | J15: 26.5
B16: напиток | C16: 283 | D16: Чай с сахаром | E16: 200 | F16: 1.74 | G16: 39.9 | H16: 0 | I16: 0 | J16: 9.98
B17: хлеб бел. | C17: 420.06 | D17: Хлеб пшен.обогащ.витам.для д/п | E17: 50 | F17: 4.05 | G17: 130 | H17: 4 | I17: 0.5 | J17: 27.5
B18: хлеб черн. | C18: 421.11 | D18: Хлеб ржано-пшеничный для д/п | E18: 40 | F18: 3.60 | G18: 88 | H18: 3.2 | I18: 0.4 | J18: 18.4
E19: =SUM(E13:E18) -> 780 | F19: =SUM(F13:F18) -> 78.02 | G19: 707.44 | H19: 23.29 | I19: 21.58 | J19: 105.38
B20: Итого за день: | E20: =E8+E19 -> 1280 | F20: 164.59 | G20: 1322.91 | H20: 45.52 | I20: 45.15 | J20: 183.78
